[Event "*** Titled Tuesday 3|2 Blitz (Late)"]
[Site "Chess.com"]
[Date "2016.11.01"]
[Round "2"]
[White "jposthuma"]
[Black "Jahonas"]
[Result "1-0"]
[WhiteElo "2183"]
[BlackElo "2167"]
[TimeControl "180+2"]
[EndTime "17:22:34 PDT"]
[Termination "jposthuma won by resignation"]

1. d4 {[%clk 0:03:02]} 1... d5 {[%clk 0:02:45.6]} 2. Nf3 {[%clk 0:02:59.7]} 2...
Nf6 {[%clk 0:02:41.4]} 3. Bf4 {[%clk 0:02:59.9]} 3... Nbd7 {[%clk 0:02:42.2]} 4.
e3 {[%clk 0:03:00.5]} 4... e6 {[%clk 0:02:43.4]} 5. Bd3 {[%clk 0:02:58.2]} 5...
Bd6 {[%clk 0:02:44]} 6. Bg3 {[%clk 0:02:19.7]} 6... Qe7 {[%clk 0:02:41.7]} 7.
Nbd2 {[%clk 0:02:17.6]} 7... e5 {[%clk 0:02:41]} 8. dxe5 {[%clk 0:02:18.6]} 8...
Nxe5 {[%clk 0:02:41.6]} 9. Nxe5 {[%clk 0:02:19.3]} 9... Bxe5 {[%clk 0:02:42.7]}
10. Bxe5 {[%clk 0:02:20.7]} 10... Qxe5 {[%clk 0:02:44]} 11. c3 {[%clk
0:02:19.8]} 11... O-O {[%clk 0:02:44.2]} 12. Qc2 {[%clk 0:02:19]} 12... c5
{[%clk 0:02:42.6]} 13. O-O {[%clk 0:01:59.8]} 13... c4 {[%clk 0:02:41]} 14. Be2
{[%clk 0:01:59.9]} 14... Bf5 {[%clk 0:02:41.9]} 15. Qd1 {[%clk 0:01:53.5]} 15...
Rad8 {[%clk 0:02:41.1]} 16. Nf3 {[%clk 0:01:54.4]} 16... Qe7 {[%clk 0:02:39.5]}
17. Nd4 {[%clk 0:01:48.9]} 17... Be4 {[%clk 0:02:38]} 18. Bf3 {[%clk 0:01:42.4]}
18... Bd3 {[%clk 0:02:29.2]} 19. Re1 {[%clk 0:01:43.4]} 19... g6 {[%clk
0:02:26.5]} 20. b4 {[%clk 0:01:39]} 20... Ne4 {[%clk 0:02:24.5]} 21. Bxe4 {[%clk
0:01:36.7]} 21... dxe4 {[%clk 0:02:24]} 22. a4 {[%clk 0:01:03.1]} 22... Rd5
{[%clk 0:02:23]} 23. Ra2 {[%clk 0:00:45.9]} 23... Rh5 {[%clk 0:02:17.7]} 24. f4
{[%clk 0:00:07.6]} 24... exf3 {[%clk 0:02:01.5]} 25. Qxf3 {[%clk 0:00:08.7]}
25... Re8 {[%clk 0:01:56.3]} 26. Rf2 {[%clk 0:00:07.6]} 26... Re5 {[%clk
0:01:55.9]} 27. h3 {[%clk 0:00:04.3]} 27... f5 {[%clk 0:01:52]} 28. g4 {[%clk
0:00:04.7]} 28... Rxe3 {[%clk 0:01:08]} 29. Rxe3 {[%clk 0:00:05.3]} 29... Qxe3
{[%clk 0:01:09]} 30. gxf5 {[%clk 0:00:06.9]} 30... Qc1+ {[%clk 0:01:08.5]} 31.
Kh2 {[%clk 0:00:04.2]} 31... Be4 {[%clk 0:00:57.5]} 32. Qf4 {[%clk 0:00:05]}
32... Qh1+ {[%clk 0:00:56.1]} 33. Kg3 {[%clk 0:00:06.3]} 33... Qg1+ {[%clk
0:00:48]} 34. Kh4 {[%clk 0:00:07.7]} 34... Re5 {[%clk 0:00:32.2]} 35. Qxe5
{[%clk 0:00:03.6]} 35... Qxf2+ {[%clk 0:00:32.6]} 36. Kg5 {[%clk 0:00:05.1]}
36... Bxf5 {[%clk 0:00:21]} 37. Nxf5 {[%clk 0:00:05.6]} 37... Qxf5+ {[%clk
0:00:22.1]} 38. Qxf5 {[%clk 0:00:06.5]} 38... gxf5 {[%clk 0:00:24]} 39. Kxf5
{[%clk 0:00:08.2]} 39... Kf7 {[%clk 0:00:25.1]} 40. h4 {[%clk 0:00:08]} 40... b6
{[%clk 0:00:25.2]} 41. b5 {[%clk 0:00:05.1]} 41... Kg7 {[%clk 0:00:25.3]} 42.
Kg5 {[%clk 0:00:04.9]} 42... h6+ {[%clk 0:00:26.7]} 43. Kf5 {[%clk 0:00:05]}
43... Kf7 {[%clk 0:00:28]} 44. h5 {[%clk 0:00:05.7]} 44... Kg7 {[%clk 0:00:29]}
45. Ke6 {[%clk 0:00:06.6]} 45... Kg8 {[%clk 0:00:27.1]} 46. Kf6 {[%clk
0:00:07.6]} 46... Kh7 {[%clk 0:00:28.5]} 47. Kf7 {[%clk 0:00:09.1]} 47... Kh8
{[%clk 0:00:29.5]} 48. Kg6 {[%clk 0:00:10.6]} 48... Kg8 {[%clk 0:00:30]} 49.
Kxh6 {[%clk 0:00:11.9]} 49... Kh8 {[%clk 0:00:31.5]} 50. Kg6 {[%clk 0:00:13.3]}
50... Kg8 {[%clk 0:00:33.1]} 51. h6 {[%clk 0:00:08.3]} 51... Kh8 {[%clk
0:00:34.2]} 52. h7 {[%clk 0:00:06.4]} 1-0

[Event "*** Titled Tuesday 3|2 Blitz (Late)"]
[Site "Chess.com"]
[Date "2016.11.01"]
[Round "2"]
[White "KyronGriffith"]
[Black "Aygehovit1992"]
[Result "0-1"]
[WhiteElo "2297"]
[BlackElo "2434"]
[TimeControl "180+2"]
[EndTime "17:22:38 PDT"]
[Termination "Aygehovit1992 won by resignation"]

1. e4 {[%clk 0:03:02]} 1... d6 {[%clk 0:03:01.9]} 2. d4 {[%clk 0:03:02.8]} 2...
g6 {[%clk 0:03:03.5]} 3. Nc3 {[%clk 0:03:03.7]} 3... a6 {[%clk 0:03:04.7]} 4.
Bg5 {[%clk 0:03:02.9]} 4... Bg7 {[%clk 0:03:05]} 5. f4 {[%clk 0:02:57.8]} 5...
b5 {[%clk 0:03:04.9]} 6. Nf3 {[%clk 0:02:57.6]} 6... Bb7 {[%clk 0:03:05.5]} 7.
Bd3 {[%clk 0:02:58.1]} 7... h6 {[%clk 0:03:03.9]} 8. Bh4 {[%clk 0:02:58.6]} 8...
Nf6 {[%clk 0:03:04.7]} 9. Qe2 {[%clk 0:02:55.9]} 9... b4 {[%clk 0:03:02.3]} 10.
Nd1 {[%clk 0:02:48.3]} 10... O-O {[%clk 0:03:03]} 11. O-O {[%clk 0:02:41.6]}
11... c5 {[%clk 0:02:53.4]} 12. c3 {[%clk 0:02:41.7]} 12... bxc3 {[%clk
0:02:48.1]} 13. bxc3 {[%clk 0:02:43.6]} 13... cxd4 {[%clk 0:02:49.6]} 14. cxd4
{[%clk 0:02:43.8]} 14... Nc6 {[%clk 0:02:51.3]} 15. Rb1 {[%clk 0:02:39.9]} 15...
Rb8 {[%clk 0:02:47.6]} 16. Nc3 {[%clk 0:02:25.2]} 16... Nh5 {[%clk 0:02:46.3]}
17. Nd5 {[%clk 0:01:49.4]} 17... Nxd4 {[%clk 0:02:41]} 18. Nxd4 {[%clk
0:01:47.2]} 18... Bxd4+ {[%clk 0:02:41.2]} 19. Kh1 {[%clk 0:01:48.3]} 19... Bxd5
{[%clk 0:02:42.7]} 20. exd5 {[%clk 0:01:49]} 20... Rxb1 {[%clk 0:02:43]} 21.
Rxb1 {[%clk 0:01:47.2]} 21... Nxf4 {[%clk 0:02:33.5]} 22. Qe4 {[%clk 0:01:24.9]}
22... Nxd3 {[%clk 0:02:31.3]} 23. Qxd3 {[%clk 0:01:16.5]} 23... Be5 {[%clk
0:02:16.5]} 24. Qxa6 {[%clk 0:01:16.8]} 24... g5 {[%clk 0:02:15.8]} 25. Bf2
{[%clk 0:01:13.7]} 25... Qa8 {[%clk 0:02:10.4]} 26. Qc4 {[%clk 0:01:03]} 26...
Rc8 {[%clk 0:02:08.9]} 27. Qg4 {[%clk 0:00:59.9]} 27... Rc2 {[%clk 0:02:03.2]}
28. Bg3 {[%clk 0:00:17.7]} 28... Qxd5 {[%clk 0:01:57.6]} 29. Bxe5 {[%clk
0:00:10.2]} 29... dxe5 {[%clk 0:01:58.6]} 30. a4 {[%clk 0:00:10.1]} 30... Rc4
{[%clk 0:01:44.2]} 31. Qh5 {[%clk 0:00:10.8]} 31... Kg7 {[%clk 0:01:29.3]} 32.
Ra1 {[%clk 0:00:11.8]} 32... Qd4 {[%clk 0:01:27.6]} 33. Rf1 {[%clk 0:00:12.4]}
33... Qf4 {[%clk 0:01:22.4]} 34. Re1 {[%clk 0:00:05.2]} 34... Rxa4 {[%clk
0:01:21.1]} 35. Qe2 {[%clk 0:00:06.3]} 35... f6 {[%clk 0:01:17.9]} 36. Rf1
{[%clk 0:00:06.6]} 36... Qc4 {[%clk 0:01:16.4]} 37. Qf2 {[%clk 0:00:06.5]} 37...
e4 {[%clk 0:01:16.5]} 38. Re1 {[%clk 0:00:05]} 38... Ra2 {[%clk 0:01:14.5]} 39.
Qg3 {[%clk 0:00:05.2]} 39... Qc2 {[%clk 0:01:09.6]} 40. h4 {[%clk 0:00:06]}
40... Qd3 {[%clk 0:00:57.9]} 41. Qg4 {[%clk 0:00:06.8]} 41... Ra4 {[%clk
0:00:26]} 42. h5 {[%clk 0:00:07.5]} 42... Qd5 {[%clk 0:00:22.3]} 43. Qg3 {[%clk
0:00:03.6]} 43... Rd4 {[%clk 0:00:22.2]} 44. Qa3 {[%clk 0:00:04.5]} 44... Qd6
{[%clk 0:00:20.9]} 45. Qa8 {[%clk 0:00:06.1]} 45... e3 {[%clk 0:00:19.6]} 46.
Qf3 {[%clk 0:00:07]} 46... Rh4+ {[%clk 0:00:20.3]} 47. Kg1 {[%clk 0:00:07.2]}
47... Qh2+ {[%clk 0:00:21.7]} 48. Kf1 {[%clk 0:00:09.1]} 48... Rf4 {[%clk
0:00:22.8]} 0-1

[Event "*** Titled Tuesday 3|2 Blitz (Late)"]
[Site "Chess.com"]
[Date "2016.11.01"]
[Round "2"]
[White "nihalsarin"]
[Black "KNVB"]
[Result "0-1"]
[WhiteElo "2499"]
[BlackElo "2598"]
[TimeControl "180+2"]
[EndTime "17:22:46 PDT"]
[Termination "KNVB won by resignation"]

1. d4 {[%clk 0:03:01.9]} 1... d5 {[%clk 0:03:00.5]} 2. c4 {[%clk 0:03:02.5]}
2... dxc4 {[%clk 0:03:02.4]} 3. e4 {[%clk 0:03:02.2]} 3... Nc6 {[%clk
0:03:01.3]} 4. Nf3 {[%clk 0:02:57.4]} 4... Nf6 {[%clk 0:03:01.3]} 5. e5 {[%clk
0:02:56.8]} 5... Nd5 {[%clk 0:03:01.9]} 6. Bxc4 {[%clk 0:02:58]} 6... Bg4 {[%clk
0:02:56.4]} 7. Nc3 {[%clk 0:02:49.1]} 7... e6 {[%clk 0:02:47.3]} 8. Nxd5 {[%clk
0:02:45.3]} 8... exd5 {[%clk 0:02:49.2]} 9. Be2 {[%clk 0:02:42.4]} 9... Bb4+
{[%clk 0:01:54.2]} 10. Kf1 {[%clk 0:02:42]} 10... Qd7 {[%clk 0:01:51.7]} 11. Be3
{[%clk 0:02:34.8]} 11... h6 {[%clk 0:01:50.4]} 12. h3 {[%clk 0:02:34.6]} 12...
Be6 {[%clk 0:01:47.8]} 13. Rc1 {[%clk 0:02:33]} 13... Ba5 {[%clk 0:01:48.8]} 14.
Bb5 {[%clk 0:02:27.3]} 14... a6 {[%clk 0:01:50]} 15. Bxc6 {[%clk 0:02:27.2]}
15... bxc6 {[%clk 0:01:51.9]} 16. Qa4 {[%clk 0:02:28.1]} 16... Bb6 {[%clk
0:01:45.1]} 17. Qxc6 {[%clk 0:02:28.2]} 17... Qxc6 {[%clk 0:01:41.8]} 18. Rxc6
{[%clk 0:02:28.8]} 18... Kd7 {[%clk 0:01:43.7]} 19. Rc1 {[%clk 0:02:27.1]} 19...
a5 {[%clk 0:01:40.7]} 20. Ke2 {[%clk 0:02:24.4]} 20... a4 {[%clk 0:01:42]} 21.
Ne1 {[%clk 0:02:24.9]} 21... Ra5 {[%clk 0:01:41.5]} 22. Nd3 {[%clk 0:02:24]}
22... Rb8 {[%clk 0:01:38.7]} 23. Bd2 {[%clk 0:02:18]} 23... Rb5 {[%clk
0:01:39.7]} 24. Bc3 {[%clk 0:02:19]} 24... Bf5 {[%clk 0:01:27]} 25. g4 {[%clk
0:02:15.2]} 25... Bg6 {[%clk 0:01:25.8]} 26. f4 {[%clk 0:02:01.1]} 26... Be4
{[%clk 0:01:23.5]} 27. Rhd1 {[%clk 0:02:01.4]} 27... f6 {[%clk 0:01:07.1]} 28.
f5 {[%clk 0:01:58]} 28... fxe5 {[%clk 0:01:03.5]} 29. dxe5 {[%clk 0:01:52.8]}
29... d4 {[%clk 0:00:52.6]} 30. Nf2 {[%clk 0:01:27.8]} 30... Rxe5 {[%clk
0:00:44.7]} 31. Bxd4 {[%clk 0:01:23.8]} 31... Bxd4 {[%clk 0:00:44.9]} 32. Rxd4+
{[%clk 0:01:22.8]} 32... Bd5+ {[%clk 0:00:46.4]} 33. Kf1 {[%clk 0:01:14.2]}
33... c6 {[%clk 0:00:46.8]} 34. Rxa4 {[%clk 0:01:05.2]} 34... Re3 {[%clk
0:00:15.7]} 35. b3 {[%clk 0:01:05.4]} 35... Kd6 {[%clk 0:00:15.4]} 36. Ra7
{[%clk 0:01:00.5]} 36... h5 {[%clk 0:00:16.8]} 37. Rxg7 {[%clk 0:00:59.7]} 37...
hxg4 {[%clk 0:00:18.4]} 38. hxg4 {[%clk 0:00:58.3]} 38... Ra8 {[%clk 0:00:18.8]}
39. Rg6+ {[%clk 0:00:46.3]} 39... Ke5 {[%clk 0:00:12.9]} 40. Rc2 {[%clk
0:00:35.7]} 40... Kf4 {[%clk 0:00:13.4]} 41. Nd1 {[%clk 0:00:14.3]} 41... Rd3
{[%clk 0:00:09.7]} 42. Rf2+ {[%clk 0:00:14.9]} 42... Kg3 {[%clk 0:00:11]} 43.
Nb2 {[%clk 0:00:14.9]} 43... Rc3 {[%clk 0:00:09.1]} 44. Kg1 {[%clk 0:00:14]}
44... Rc1+ {[%clk 0:00:07.6]} 45. Rf1 {[%clk 0:00:14.7]} 45... Rh8 {[%clk
0:00:09.4]} 0-1

[Event "*** Titled Tuesday 3|2 Blitz (Late)"]
[Site "Chess.com"]
[Date "2016.11.01"]
[Round "2"]
[White "Noukii"]
[Black "popov_m"]
[Result "0-1"]
[WhiteElo "2654"]
[BlackElo "2278"]
[TimeControl "180+2"]
[EndTime "17:22:46 PDT"]
[Termination "popov_m won by checkmate"]

1. d4 {[%clk 0:03:01.9]} 1... Nf6 {[%clk 0:03:00.3]} 2. c4 {[%clk 0:03:02.5]}
2... g6 {[%clk 0:03:01.7]} 3. Nc3 {[%clk 0:03:03.8]} 3... Bg7 {[%clk 0:03:03.2]}
4. Nf3 {[%clk 0:03:05.2]} 4... d6 {[%clk 0:03:04.4]} 5. Bg5 {[%clk 0:03:06.8]}
5... O-O {[%clk 0:03:05.2]} 6. e3 {[%clk 0:03:08.3]} 6... Nbd7 {[%clk
0:03:00.5]} 7. Be2 {[%clk 0:03:09.2]} 7... c6 {[%clk 0:03:00.5]} 8. O-O {[%clk
0:03:09.8]} 8... h6 {[%clk 0:03:00]} 9. Bh4 {[%clk 0:03:10.8]} 9... Qc7 {[%clk
0:02:53.3]} 10. h3 {[%clk 0:03:07.6]} 10... e5 {[%clk 0:02:49.5]} 11. Qc2 {[%clk
0:03:08.5]} 11... Re8 {[%clk 0:02:46.3]} 12. Rfd1 {[%clk 0:03:09.2]} 12... Nf8
{[%clk 0:02:37.5]} 13. Rac1 {[%clk 0:03:01.6]} 13... Bf5 {[%clk 0:02:35.2]} 14.
Qb3 {[%clk 0:03:01.7]} 14... g5 {[%clk 0:01:42.8]} 15. Bg3 {[%clk 0:03:02.5]}
15... Ng6 {[%clk 0:01:44.5]} 16. c5 {[%clk 0:02:59]} 16... dxc5 {[%clk
0:01:34.5]} 17. dxe5 {[%clk 0:03:00]} 17... Nh5 {[%clk 0:01:20.3]} 18. Bh2
{[%clk 0:03:00.8]} 18... Be6 {[%clk 0:01:21.5]} 19. Qa3 {[%clk 0:02:49.4]} 19...
Bf8 {[%clk 0:00:58.4]} 20. Ne4 {[%clk 0:02:49.4]} 20... Bd5 {[%clk 0:00:43.4]}
21. Nd6 {[%clk 0:02:49]} 21... Bxd6 {[%clk 0:00:41.9]} 22. exd6 {[%clk
0:02:50.9]} 22... Qd7 {[%clk 0:00:43.2]} 23. Qxc5 {[%clk 0:02:45.6]} 23... Nhf4
{[%clk 0:00:38.4]} 24. Bf1 {[%clk 0:02:38.8]} 24... Nxh3+ {[%clk 0:00:37.3]} 25.
gxh3 {[%clk 0:02:40.4]} 25... Bxf3 {[%clk 0:00:38]} 26. Rd4 {[%clk 0:02:36.7]}
26... Bd5 {[%clk 0:00:31.7]} 27. Bg3 {[%clk 0:02:33.9]} 27... Ne5 {[%clk
0:00:28.7]} 28. Rxd5 {[%clk 0:02:29.9]} 28... cxd5 {[%clk 0:00:27.6]} 29. Qxd5
{[%clk 0:02:31.8]} 29... Nc6 {[%clk 0:00:24.5]} 30. Bc4 {[%clk 0:02:21.9]} 30...
Rac8 {[%clk 0:00:19.4]} 31. a3 {[%clk 0:02:14.3]} 31... Nd8 {[%clk 0:00:19]} 32.
Qd3 {[%clk 0:02:10]} 32... Ne6 {[%clk 0:00:12.8]} 33. Rd1 {[%clk 0:02:08.9]}
33... a6 {[%clk 0:00:13.4]} 34. Ba2 {[%clk 0:02:09.9]} 34... Red8 {[%clk
0:00:10.9]} 35. h4 {[%clk 0:02:11]} 35... Rc5 {[%clk 0:00:10.8]} 36. Bb1 {[%clk
0:02:10.6]} 36... Nf8 {[%clk 0:00:10]} 37. hxg5 {[%clk 0:02:10.3]} 37... Rxg5
{[%clk 0:00:10.8]} 38. Kg2 {[%clk 0:02:10.8]} 38... Qc6+ {[%clk 0:00:11]} 39.
Qe4 {[%clk 0:02:10.1]} 39... Qb6 {[%clk 0:00:08.4]} 40. b4 {[%clk 0:02:05.2]}
40... Rxd6 {[%clk 0:00:08.8]} 41. Rh1 {[%clk 0:02:06.2]} 41... Rdg6 {[%clk
0:00:09.3]} 42. Rh3 {[%clk 0:02:06.5]} 42... Rg7 {[%clk 0:00:09.7]} 43. Kh2
{[%clk 0:02:06]} 43... h5 {[%clk 0:00:08.1]} 44. Qf3 {[%clk 0:02:06.6]} 44...
Qc6 {[%clk 0:00:06.1]} 45. Be4 {[%clk 0:02:07.6]} 45... Qd7 {[%clk 0:00:06.3]}
46. Rxh5 {[%clk 0:02:04.7]} 46... Rxh5+ {[%clk 0:00:07.1]} 47. Qxh5 {[%clk
0:02:06.6]} 47... b5 {[%clk 0:00:06]} 48. Kg2 {[%clk 0:02:06.4]} 48... Qe6
{[%clk 0:00:06.4]} 49. Bd5 {[%clk 0:02:06]} 49... Qg6 {[%clk 0:00:07.6]} 50. Qf3
{[%clk 0:02:07.6]} 50... Ne6 {[%clk 0:00:08.3]} 51. Bb7 {[%clk 0:02:08.8]} 51...
Ng5 {[%clk 0:00:09.4]} 52. Qc6 {[%clk 0:02:06.5]} 52... Qh5 {[%clk 0:00:09]} 53.
Qc8+ {[%clk 0:02:07.9]} 53... Kh7 {[%clk 0:00:10.3]} 54. Qf5+ {[%clk 0:02:08.6]}
54... Qg6 {[%clk 0:00:10.6]} 55. Qg4 {[%clk 0:02:07.1]} 55... Qb6 {[%clk
0:00:09.5]} 56. Qc8 {[%clk 0:01:58.9]} 56... Qg6 {[%clk 0:00:04.6]} 57. Qg4
{[%clk 0:01:56.2]} 57... Qb6 {[%clk 0:00:04.3]} 58. Qf5+ {[%clk 0:01:57.7]}
58... Qg6 {[%clk 0:00:05.1]} 59. Qc5 {[%clk 0:01:54.9]} 59... Ne4 {[%clk
0:00:05.2]} 60. Qe5 {[%clk 0:01:44]} 60... Nxg3 {[%clk 0:00:05.8]} 61. fxg3
{[%clk 0:01:45.9]} 61... Qc2+ {[%clk 0:00:06.7]} 62. Kh3 {[%clk 0:01:47.3]}
62... Qd1 {[%clk 0:00:03.9]} 63. Be4+ {[%clk 0:01:48.5]} 63... Kh8 {[%clk
0:00:05.1]} 64. Qe8+ {[%clk 0:01:45.8]} 64... Rg8 {[%clk 0:00:06.6]} 65. Qxf7
{[%clk 0:01:46.4]} 65... Qg4+ {[%clk 0:00:04.2]} 66. Kh2 {[%clk 0:01:46.3]}
66... Qxg3+ {[%clk 0:00:06.1]} 67. Kh1 {[%clk 0:01:48.2]} 67... Qg1# {[%clk
0:00:07.7]} 0-1

[Event "*** Titled Tuesday 3|2 Blitz (Late)"]
[Site "Chess.com"]
[Date "2016.11.01"]
[Round "2"]
[White "maciek_92"]
[Black "wonderfultime"]
[Result "0-1"]
[WhiteElo "2555"]
[BlackElo "2714"]
[TimeControl "180+2"]
[EndTime "17:23:06 PDT"]
[Termination "wonderfultime won by resignation"]

1. c4 {[%clk 0:03:01.9]} 1... c6 {[%clk 0:03:00.7]} 2. Nf3 {[%clk 0:03:02.4]}
2... d5 {[%clk 0:03:01.4]} 3. d4 {[%clk 0:03:03.8]} 3... Nf6 {[%clk 0:03:02.2]}
4. Nc3 {[%clk 0:03:04.3]} 4... a6 {[%clk 0:03:03.5]} 5. Qc2 {[%clk 0:02:52.8]}
5... b5 {[%clk 0:02:55.5]} 6. b3 {[%clk 0:02:50.1]} 6... g6 {[%clk 0:02:56.1]}
7. e4 {[%clk 0:02:48]} 7... Nxe4 {[%clk 0:02:20.4]} 8. Nxe4 {[%clk 0:02:48]}
8... dxe4 {[%clk 0:02:22.3]} 9. Qxe4 {[%clk 0:02:48.6]} 9... Bg7 {[%clk
0:02:23.8]} 10. Be2 {[%clk 0:02:42.4]} 10... O-O {[%clk 0:02:23.9]} 11. O-O
{[%clk 0:02:42.8]} 11... Bf5 {[%clk 0:02:24.8]} 12. Qh4 {[%clk 0:02:43]} 12...
bxc4 {[%clk 0:02:20.3]} 13. Bh6 {[%clk 0:02:36.7]} 13... Bd3 {[%clk 0:01:17.2]}
14. Bxd3 {[%clk 0:02:29.6]} 14... cxd3 {[%clk 0:01:19.1]} 15. Rad1 {[%clk
0:02:16.4]} 15... Nd7 {[%clk 0:01:18.6]} 16. Rxd3 {[%clk 0:02:08.6]} 16... Nf6
{[%clk 0:01:19.5]} 17. Rc1 {[%clk 0:02:07.3]} 17... Rc8 {[%clk 0:01:14.8]} 18.
Rdc3 {[%clk 0:01:57.7]} 18... Qa5 {[%clk 0:01:10.9]} 19. h3 {[%clk 0:01:48.9]}
19... Qxa2 {[%clk 0:01:09.1]} 20. Ng5 {[%clk 0:01:46.5]} 20... Rfd8 {[%clk
0:00:39.6]} 21. Rxc6 {[%clk 0:01:30.5]} 21... Rxc6 {[%clk 0:00:40.4]} 22. Rxc6
{[%clk 0:01:32.4]} 22... Bxh6 {[%clk 0:00:38.5]} 23. Qxh6 {[%clk 0:01:25.3]}
23... Qa1+ {[%clk 0:00:39.8]} 24. Kh2 {[%clk 0:01:26.3]} 24... Qxd4 {[%clk
0:00:40.8]} 25. Rc2 {[%clk 0:00:40.2]} 25... Qf4+ {[%clk 0:00:39.5]} 26. g3
{[%clk 0:00:40.9]} 26... Qf5 {[%clk 0:00:40.8]} 27. Re2 {[%clk 0:00:38.9]} 27...
Rd5 {[%clk 0:00:36.1]} 28. f4 {[%clk 0:00:22.9]} 28... Qd3 {[%clk 0:00:37]} 29.
Rg2 {[%clk 0:00:21.4]} 29... Qf1 {[%clk 0:00:34.5]} 30. Rc2 {[%clk 0:00:15.8]}
30... Rd8 {[%clk 0:00:35.4]} 31. Qh4 {[%clk 0:00:10.1]} 31... Qb1 {[%clk
0:00:31.2]} 32. Rg2 {[%clk 0:00:10.7]} 32... Rd1 {[%clk 0:00:28.1]} 33. Rf2
{[%clk 0:00:09.2]} 33... Rh1+ {[%clk 0:00:28.1]} 34. Kg2 {[%clk 0:00:10.7]}
34... Rg1+ {[%clk 0:00:29.4]} 35. Kh2 {[%clk 0:00:12]} 35... Rh1+ {[%clk
0:00:30.7]} 36. Kg2 {[%clk 0:00:13.4]} 36... Qg1+ {[%clk 0:00:29.1]} 37. Kf3
{[%clk 0:00:14.8]} 37... Rh2 {[%clk 0:00:25.3]} 38. g4 {[%clk 0:00:12.5]} 38...
Qh1+ {[%clk 0:00:21.9]} 39. Kg3 {[%clk 0:00:12.6]} 39... Rxf2 {[%clk 0:00:17.4]}
40. Kxf2 {[%clk 0:00:13.7]} 40... Qh2+ {[%clk 0:00:16.8]} 41. Kf3 {[%clk
0:00:14]} 41... Qb2 {[%clk 0:00:17.3]} 42. Kg3 {[%clk 0:00:13.5]} 42... Qxb3+
{[%clk 0:00:18.3]} 43. Kg2 {[%clk 0:00:14.3]} 43... Qb7+ {[%clk 0:00:18.3]} 44.
Kg3 {[%clk 0:00:15.1]} 44... a5 {[%clk 0:00:19.6]} 45. f5 {[%clk 0:00:16.2]}
45... a4 {[%clk 0:00:20]} 46. fxg6 {[%clk 0:00:17.5]} 46... hxg6 {[%clk
0:00:21.9]} 47. Qh6 {[%clk 0:00:14.3]} 47... a3 {[%clk 0:00:21.8]} 48. Kh4
{[%clk 0:00:10.3]} 48... Qa7 {[%clk 0:00:18]} 49. Nf3 {[%clk 0:00:03.8]} 49...
Qf2+ {[%clk 0:00:18.3]} 50. Kg5 {[%clk 0:00:05.3]} 50... Qe3+ {[%clk 0:00:19.6]}
0-1

[Event "*** Titled Tuesday 3|2 Blitz (Late)"]
[Site "Chess.com"]
[Date "2016.11.01"]
[Round "2"]
[White "hermionegrangermagic"]
[Black "LawrenceTrent"]
[Result "1-0"]
[WhiteElo "2244"]
[BlackElo "2455"]
[TimeControl "180+2"]
[EndTime "17:23:41 PDT"]
[Termination "hermionegrangermagic won by resignation"]

1. e4 {[%clk 0:03:02]} 1... c5 {[%clk 0:02:59.7]} 2. Nf3 {[%clk 0:03:02.2]} 2...
d6 {[%clk 0:03:00.7]} 3. d4 {[%clk 0:03:03.3]} 3... cxd4 {[%clk 0:03:02.2]} 4.
Nxd4 {[%clk 0:03:05.2]} 4... Nf6 {[%clk 0:03:03.5]} 5. Nc3 {[%clk 0:03:06.8]}
5... g6 {[%clk 0:03:04.9]} 6. Be3 {[%clk 0:03:07.1]} 6... Bg7 {[%clk 0:03:05.9]}
7. f3 {[%clk 0:03:08.2]} 7... O-O {[%clk 0:03:05.3]} 8. Qd2 {[%clk 0:03:08.8]}
8... Nc6 {[%clk 0:03:06.4]} 9. O-O-O {[%clk 0:03:09.8]} 9... d5 {[%clk
0:03:07.2]} 10. Kb1 {[%clk 0:03:11]} 10... Rb8 {[%clk 0:03:07.3]} 11. Ndb5
{[%clk 0:03:11.8]} 11... a6 {[%clk 0:03:07.2]} 12. Na7 {[%clk 0:03:12.9]} 12...
e6 {[%clk 0:03:03.4]} 13. g4 {[%clk 0:03:13.3]} 13... d4 {[%clk 0:02:56.1]} 14.
Nxc6 {[%clk 0:03:01.5]} 14... bxc6 {[%clk 0:02:56.6]} 15. Bxd4 {[%clk
0:02:59.2]} 15... Qa5 {[%clk 0:02:56.9]} 16. Qf4 {[%clk 0:02:11.1]} 16... Qb4
{[%clk 0:02:41.6]} 17. b3 {[%clk 0:02:11.3]} 17... Nh5 {[%clk 0:02:18.1]} 18.
Qe3 {[%clk 0:02:02.7]} 18... Nf4 {[%clk 0:02:01.3]} 19. Bxg7 {[%clk 0:01:51.7]}
19... Kxg7 {[%clk 0:01:59.4]} 20. Qxf4 {[%clk 0:01:49.9]} 20... f6 {[%clk
0:01:46.3]} 21. Qe3 {[%clk 0:01:43.4]} 21... e5 {[%clk 0:01:44.5]} 22. h4 {[%clk
0:01:42.5]} 22... a5 {[%clk 0:01:43.1]} 23. g5 {[%clk 0:01:40.7]} 23... a4
{[%clk 0:01:42.2]} 24. gxf6+ {[%clk 0:01:38.7]} 24... Rxf6 {[%clk 0:01:42.2]}
25. h5 {[%clk 0:01:36.6]} 25... axb3 {[%clk 0:01:29.6]} 26. cxb3 {[%clk
0:01:35.1]} 26... Be6 {[%clk 0:01:31.5]} 27. hxg6 {[%clk 0:01:19.1]} 27... Rxg6
{[%clk 0:01:31.4]} 28. Ne2 {[%clk 0:01:06.1]} 28... Qa3 {[%clk 0:01:18.9]} 29.
Nc1 {[%clk 0:00:44.1]} 29... c5 {[%clk 0:01:17.2]} 30. Bh3 {[%clk 0:00:36.1]}
30... Bg8 {[%clk 0:01:07.3]} 31. Rd7+ {[%clk 0:00:31.6]} 31... Kh8 {[%clk
0:01:07.1]} 32. Qc3 {[%clk 0:00:24.6]} 32... Re8 {[%clk 0:00:58.5]} 33. Bf5
{[%clk 0:00:23.4]} 33... Rg7 {[%clk 0:00:57.4]} 34. Rxg7 {[%clk 0:00:22.5]}
34... Kxg7 {[%clk 0:00:56.5]} 35. Qd2 {[%clk 0:00:23.5]} 35... c4 {[%clk
0:00:22.6]} 36. Bxh7 {[%clk 0:00:10.1]} 36... c3 {[%clk 0:00:10.8]} 37. Qg2+
{[%clk 0:00:10.8]} 37... Kf6 {[%clk 0:00:10.3]} 38. Bf5 {[%clk 0:00:10.5]} 38...
Bf7 {[%clk 0:00:09.2]} 39. Qc2 {[%clk 0:00:09.3]} 39... Qc5 {[%clk 0:00:08.2]}
40. Ne2 {[%clk 0:00:09.7]} 40... Rg8 {[%clk 0:00:07.3]} 41. Nxc3 {[%clk
0:00:09.4]} 41... Rg3 {[%clk 0:00:07.3]} 42. Qd2 {[%clk 0:00:09.5]} 42... Rxf3
{[%clk 0:00:07.7]} 43. Nd5+ {[%clk 0:00:10.4]} 43... Bxd5 {[%clk 0:00:07.3]} 44.
Qh6+ {[%clk 0:00:09.3]} 44... Ke7 {[%clk 0:00:08.2]} 45. Qg5+ {[%clk 0:00:08.2]}
45... Kd6 {[%clk 0:00:07.8]} 46. Qd8+ {[%clk 0:00:06.7]} 46... Kc6 {[%clk
0:00:08.6]} 47. Rc1 {[%clk 0:00:06.8]} 47... Qxc1+ {[%clk 0:00:09.5]} 48. Kxc1
{[%clk 0:00:07.9]} 48... Bf7 {[%clk 0:00:08.4]} 49. Qd7+ {[%clk 0:00:08.3]}
49... Kc5 {[%clk 0:00:08.8]} 50. Qxf7 {[%clk 0:00:08.9]} 50... Kd4 {[%clk
0:00:10.7]} 51. Qd5+ {[%clk 0:00:09.4]} 51... Kc3 {[%clk 0:00:12]} 52. Qc5+
{[%clk 0:00:10.2]} 52... Kd3 {[%clk 0:00:13]} 53. Kb2 {[%clk 0:00:10.9]} 53...
Re3 {[%clk 0:00:13.2]} 54. a4 {[%clk 0:00:11.7]} 54... Re2+ {[%clk 0:00:15.1]}
55. Ka3 {[%clk 0:00:12.1]} 55... Re1 {[%clk 0:00:17]} 56. Qc4+ {[%clk
0:00:12.7]} 56... Kd2 {[%clk 0:00:18.2]} 57. Qb4+ {[%clk 0:00:13.9]} 57... Ke2
{[%clk 0:00:17]} 58. Qxe1+ {[%clk 0:00:14.6]} 1-0